[Event "46th GRE-chT Premier 2018"]
[Site "Rio Achaia"]
[Date "2018.07.12"]
[Round "4"]
[White "Sigalas, Frangiskos"]
[Black "Mavrikakis, Georgios"]
[Result "1/2-1/2"]
[ECO "C60"]
[WhiteElo "2213"]
[BlackElo "2127"]
[Annotator "NA"]
[PlyCount "46"]
[EventDate "2018.07.10"]
[EventType "team-tourn"]
[EventCountry "GRE"]
[SourceTitle "playchess.com"]
[Source "ChessBase"]
[SourceQuality "1"]
[TimeControl "40/5400+30:1800+30"]

1. e4 {[%emt 0:02:31]} e5 {[%emt 0:00:00]} 2. Nf3 {[%emt 0:00:23]} Nc6 {[%emt 0:00:00]} 3. Bb5 {[%emt 0:00:23]} Nge7 {[%emt 0:00:04]} 4. O-O {[%emt 0:01:00]} g6 {[%emt 0:00:16]} 5. c3 {[%emt 0:00:51]} Bg7 {[%emt 0:00:13]} 6. d4 {[%emt 0:00:24]} exd4 {[%emt 0:00:09]} 7. cxd4 {[%emt 0:00:09]} d5 {[%emt 0:00:09]} 8. exd5 {[%emt 0:00:22]} Nxd5 {[%emt 0:00:09]} 9. Re1+ {[%emt 0:00:22]} Be6 {[%emt 0:00:11]} 10. Bg5 {[%emt 0:00:20]} Qd6 {[%emt 0:00:09]} 11. Nbd2 {[%emt 0:00:17]} O-O {[%emt 0:00:14]} 12. Ne4 {[%emt 0:00:13]} Qb4 {[%emt 0:00:15]} 13. Bxc6 {[%emt 0:00:07]} bxc6 {[%emt 0:00:06]} 14. Qc1 {[%emt 0:00:09]} Rae8 {[%emt 0:01:22]} 15. b3 {[%emt 0:06:54]} Bf5 {[%emt 0:04:42]} 16. Bd2 {[%emt 0:15:24]} Qb6 {[%emt 0:07:03]} 17. Nc5 {[%emt 0:04:27]} Nb4 {[%emt 0:04:40]} 18. Qc4 {[%emt 0:10:51]} Nc2 {[%emt 0:12:19]} 19. Rxe8 {[%emt 0:07:49]} Rxe8 {[%emt 0:02:02]} 20. Rc1 {[%emt 0:21:55]} Na3 {[%emt 0:02:28]} 21. Qa4 {[%emt 0:00:34]} Nc2 {[%emt 0:01:53]} 22. Qc4 {[%emt 0:00:07]} Na3 {[%emt 0:00:52]} 23. Qa4 {[%emt 0:00:05]} Nc2 {[%emt 0:03:41]} 1/2-1/2

[Event "46th GRE-chT Premier 2018"]
[Site "Rio Achaia"]
[Date "2018.07.12"]
[Round "4"]
[White "Michos, Thomas"]
[Black "Petrakis, Ilias"]
[Result "1-0"]
[ECO "A40"]
[WhiteElo "2211"]
[BlackElo "2118"]
[Annotator "NA"]
[PlyCount "103"]
[EventDate "2018.07.10"]
[EventType "team-tourn"]
[EventCountry "GRE"]
[SourceTitle "playchess.com"]
[Source "ChessBase"]
[SourceQuality "1"]
[TimeControl "40/5400+30:1800+30"]

1. d4 {[%emt 0:00:00]} g6 {[%emt 0:00:00]} 2. Nf3 {[%emt 0:00:00]} Bg7 {[%emt 0:00:00]} 3. c3 {[%emt 0:00:48]} d6 {[%emt 0:00:22]} 4. e4 {[%emt 0:00:46]} Nc6 {[%emt 0:02:09]} 5. Be2 {[%emt 0:01:02]} Nf6 {[%emt 0:01:29]} 6. Qc2 {[%emt 0:00:22]} e5 {[%emt 0:01:35]} 7. dxe5 {[%emt 0:00:19]} dxe5 {[%emt 0:00:37]} 8. Bg5 {[%emt 0:00:36]} O-O {[%emt 0:00:40]} 9. O-O {[%emt 0:00:04]} h6 {[%emt 0:00:38]} 10. Bh4 {[%emt 0:00:43]} Qe8 {[%emt 0:00:22]} 11. Nbd2 {[%emt 0:00:19]} Nh5 {[%emt 0:02:26]} 12. Rfe1 {[%emt 0:01:19]} Nf4 {[%emt 0:17:28]} 13. Bf1 {[%emt 0:00:48]} Be6 {[%emt 0:15:18]} 14. Bc4 {[%emt 0:00:35]} Bxc4 {[%emt 0:06:09]} 15. Nxc4 {[%emt 0:00:05]} Qe6 {[%emt 0:00:09]} 16. Ne3 {[%emt 0:01:15]} Ne7 {[%emt 0:06:33]} 17. a3 {[%emt 0:10:06]} f6 {[%emt 0:01:15]} 18. Bg3 {[%emt 0:00:38]} Nh5 {[%emt 0:02:07]} 19. Nd5 {[%emt 0:21:59]} Nxd5 {[%emt 0:03:05]} 20. exd5 {[%emt 0:00:13]} Qf7 {[%emt 0:00:07]} 21. Rad1 {[%emt 0:02:33]} Rfe8 {[%emt 0:03:17]} 22. c4 {[%emt 0:01:36]} Nxg3 {[%emt 0:01:44]} 23. hxg3 {[%emt 0:00:09]} f5 {[%emt 0:00:39]} 24. Re2 {[%emt 0:07:07]} Rad8 {[%emt 0:07:09]} 25. Qb3 {[%emt 0:14:27]} c6 {[%emt 0:00:49]} 26. Red2 {[%emt 0:04:22]} e4 {[%emt 0:03:47]} 27. Nh2 {[%emt 0:00:18]} c5 {[%emt 0:02:22]} 28. Nf1 {[%emt 0:05:35]} g5 {[%emt 0:00:55]} 29. Ne3 {[%emt 0:05:03]} f4 {[%emt 0:01:13]} 30. gxf4 {[%emt 0:00:23]} gxf4 {[%emt 0:00:06]} 31. Ng4 {[%emt 0:01:10]} Qg6 {[%emt 0:01:39]} 32. Qh3 {[%emt 0:01:53]} h5 {[%emt 0:02:11]} 33. Nh2 {[%emt 0:00:22]} Rd6 {[%emt 0:04:20]} 34. Kh1 {[%emt 0:01:51]} Bd4 {[%emt 0:02:02]} 35. Re2 {[%emt 0:01:06]} Rb6 {[%emt 0:06:43]} 36. b4 {[%emt 0:01:03]} Rf6 {[%emt 0:01:12]} 37. b5 {[%emt 0:03:12]} Rf7 {[%emt 0:03:40]} 38. Rde1 {[%emt 0:05:34]} Bg7 {[%emt 0:01:26]} 39. Nf3 {[%emt 0:02:59]} Bf6 {[%emt 0:00:55]} 40. Nd2 {[%emt 0:00:00]} Rfe7 {[%emt 0:00:00]} 41. d6 {[%emt 0:08:12]} Re5 {[%emt 0:02:55]} 42. d7 {[%emt 0:01:32]} R8e6 {[%emt 0:01:05]} 43. f3 {[%emt 0:00:35]} e3 {[%emt 0:01:21]} 44. Ne4 {[%emt 0:00:08]} Bd8 {[%emt 0:01:07]} 45. Rd1 {[%emt 0:01:58]} Rxe4 {[%emt 0:14:47]} 46. fxe4 {[%emt 0:00:08]} Rxe4 {[%emt 0:00:29]} 47. Rd5 {[%emt 0:08:51]} f3 {[%emt 0:03:26]} 48. gxf3 {[%emt 0:00:26]} Rh4 {[%emt 0:00:14]} 49. Qxh4 {[%emt 0:00:14]} Bxh4 {[%emt 0:01:09]} 50. Rg2 {[%emt 0:00:09]} Qxg2+ {[%emt 0:01:31]} 51. Kxg2 {[%emt 0:00:02]} e2 {[%emt 0:00:08]} 52. Re5 1-0

[Event "46th GRE-chT Premier 2018"]
[Site "Rio Achaia"]
[Date "2018.07.12"]
[Round "4"]
[White "Tsekouras, Theodoros"]
[Black "Papageorgiou, Ioannis"]
[Result "0-1"]
[ECO "B42"]
[WhiteElo "2210"]
[BlackElo "1983"]
[Annotator "NA"]
[PlyCount "100"]
[EventDate "2018.07.10"]
[EventType "team-tourn"]
[EventCountry "GRE"]
[SourceTitle "playchess.com"]
[Source "ChessBase"]
[SourceQuality "1"]
[TimeControl "40/5400+30:1800+30"]

1. e4 {[%emt 0:00:00]} c5 {[%emt 0:00:00]} 2. Nf3 {[%emt 0:00:21]} e6 {[%emt 0:00:00]} 3. d4 {[%emt 0:00:29]} cxd4 {[%emt 0:00:00]} 4. Nxd4 {[%emt 0:00:05]} a6 {[%emt 0:00:01]} 5. Bd3 {[%emt 0:01:41]} Nf6 {[%emt 0:00:11]} 6. O-O {[%emt 0:00:35]} Qc7 {[%emt 0:00:10]} 7. Qe2 {[%emt 0:02:57]} d6 {[%emt 0:00:30]} 8. c4 {[%emt 0:01:51]} g6 {[%emt 0:03:37]} 9. b3 {[%emt 0:03:44]} Bg7 {[%emt 0:00:22]} 10. Bb2 {[%emt 0:00:06]} O-O {[%emt 0:01:25]} 11. Nc2 {[%emt 0:25:04]} Nc6 {[%emt 0:03:14]} 12. Nc3 {[%emt 0:02:44]} Ne5 {[%emt 0:11:29]} 13. Rad1 {[%emt 0:05:26]} b6 {[%emt 0:18:30]} 14. f4 {[%emt 0:08:35]} Nxd3 {[%emt 0:02:53]} 15. Qxd3 {[%emt 0:00:09]} Rd8 {[%emt 0:04:34]} 16. Ba3 {[%emt 0:03:24]} Ne8 {[%emt 0:00:48]} 17. e5 {[%emt 0:11:21]} Bf8 {[%emt 0:01:58]} 18. Ne4 {[%emt 0:08:14]} Bb7 {[%emt 0:00:59]} 19. Nxd6 {[%emt 0:00:48]} Qc6 {[%emt 0:02:15]} 20. Rf2 {[%emt 0:00:13]} Nxd6 {[%emt 0:02:59]} 21. Bxd6 {[%emt 0:00:45]} Bxd6 {[%emt 0:01:13]} 22. exd6 {[%emt 0:00:11]} Rd7 {[%emt 0:00:25]} 23. Ne3 {[%emt 0:05:55]} h5 {[%emt 0:02:09]} 24. Rfd2 {[%emt 0:02:51]} Rad8 {[%emt 0:01:18]} 25. Kf2 {[%emt 0:00:26]} Qc5 {[%emt 0:05:06]} 26. Qd4 {[%emt 0:02:48]} Rxd6 {[%emt 0:00:49]} 27. Qxd6 {[%emt 0:00:42]} Rxd6 {[%emt 0:00:18]} 28. Rxd6 {[%emt 0:00:05]} a5 {[%emt 0:01:29]} 29. Ke2 {[%emt 0:04:44]} h4 {[%emt 0:09:15]} 30. Rd7 {[%emt 0:03:15]} Bc6 {[%emt 0:00:34]} 31. R7d6 {[%emt 0:01:43]} Kg7 {[%emt 0:01:07]} 32. R1d2 {[%emt 0:00:29]} Be4 {[%emt 0:10:25]} 33. R6d4 {[%emt 0:00:17]} Bb1 {[%emt 0:01:03]} 34. g3 {[%emt 0:04:26]} Bxa2 {[%emt 0:00:45]} 35. R4d3 {[%emt 0:00:34]} Bb1 {[%emt 0:00:11]} 36. Rd7 {[%emt 0:00:12]} hxg3 {[%emt 0:01:52]} 37. hxg3 {[%emt 0:00:02]} Qh5+ {[%emt 0:00:56]} 38. g4 {[%emt 0:01:16]} Qh2+ {[%emt 0:00:35]} 39. Kf3 {[%emt 0:00:20]} Qh3+ {[%emt 0:00:46]} 40. Kf2 {[%emt 0:00:00]} Be4 {[%emt 0:00:00]} 41. Nf1 {[%emt 0:07:06]} Qxg4 {[%emt 0:04:15]} 42. R2d4 {[%emt 0:09:20]} Qxf4+ {[%emt 0:08:15]} 43. Ke1 {[%emt 0:00:41]} Qh4+ {[%emt 0:00:49]} 44. Ke2 {[%emt 0:01:00]} Qg4+ {[%emt 0:00:49]} 45. Ke1 {[%emt 0:00:39]} e5 {[%emt 0:02:32]} 46. R4d6 {[%emt 0:00:22]} Bf5 {[%emt 0:00:58]} 47. Rc7 {[%emt 0:01:45]} Qe4+ {[%emt 0:03:48]} 48. Kf2 {[%emt 0:00:37]} Qf4+ {[%emt 0:00:15]} 49. Ke1 {[%emt 0:00:28]} e4 {[%emt 0:00:35]} 50. Rdc6 {[%emt 0:02:23]} e3 {[%emt 0:00:34]} 0-1

[Event "46th GRE-chT Premier 2018"]
[Site "Rio Achaia"]
[Date "2018.07.12"]
[Round "4"]
[White "Azis, Azizis Ektoras"]
[Black "Fragkos, Vasilios"]
[Result "1-0"]
[ECO "D00"]
[WhiteElo "2209"]
[BlackElo "2066"]
[Annotator "NA"]
[PlyCount "65"]
[EventDate "2018.07.10"]
[EventType "team-tourn"]
[EventCountry "GRE"]
[SourceTitle "playchess.com"]
[Source "ChessBase"]
[SourceQuality "1"]
[TimeControl "40/5400+30:1800+30"]

1. d4 {[%emt 0:00:00]} d5 {[%emt 0:01:24]} 2. Bg5 {[%emt 0:03:05]} h6 {[%emt 0:00:13]} 3. Bh4 {[%emt 0:00:15]} Nd7 {[%emt 0:00:24]} 4. e3 {[%emt 0:00:55]} Ngf6 {[%emt 0:00:07]} 5. f4 {[%emt 0:02:54]} c5 {[%emt 0:01:51]} 6. c3 {[%emt 0:01:39]} Qb6 {[%emt 0:02:06]} 7. Qe2 {[%emt 0:06:03]} Ne4 {[%emt 0:03:47]} 8. Nf3 {[%emt 0:02:07]} e6 {[%emt 0:07:35]} 9. Qb5 {[%emt 0:24:50]} f6 {[%emt 0:05:17]} 10. Qxb6 {[%emt 0:01:35]} Nxb6 {[%emt 0:02:30]} 11. Nbd2 {[%emt 0:03:52]} g5 {[%emt 0:00:16]} 12. Bf2 {[%emt 0:04:20]} cxd4 {[%emt 0:22:30]} 13. Nxe4 {[%emt 0:04:17]} dxe4 {[%emt 0:00:58]} 14. Nxd4 {[%emt 0:00:08]} gxf4 {[%emt 0:00:46]} 15. exf4 {[%emt 0:00:32]} Nd5 {[%emt 0:03:17]} 16. O-O-O {[%emt 0:14:27]} a6 {[%emt 0:05:37]} 17. f5 {[%emt 0:05:30]} exf5 {[%emt 0:14:06]} 18. Bc4 {[%emt 0:00:55]} Nf4 {[%emt 0:05:53]} 19. g3 {[%emt 0:04:26]} Nh3 {[%emt 0:13:21]} 20. Be3 {[%emt 0:00:46]} Bc5 {[%emt 0:02:53]} 21. Rhf1 {[%emt 0:03:10]} Ng5 {[%emt 0:01:16]} 22. Nxf5 {[%emt 0:05:54]} Bxf5 {[%emt 0:00:49]} 23. Bxc5 {[%emt 0:00:17]} Bg4 {[%emt 0:01:04]} 24. Rd6 {[%emt 0:03:20]} Rc8 {[%emt 0:01:41]} 25. b4 {[%emt 0:01:25]} f5 {[%emt 0:01:14]} 26. h4 {[%emt 0:01:49]} Nf3 {[%emt 0:00:34]} 27. Re6+ {[%emt 0:01:10]} Kf7 {[%emt 0:01:08]} 28. Rxe4+ {[%emt 0:00:59]} Kg7 {[%emt 0:00:45]} 29. Re7+ {[%emt 0:00:44]} Kf6 {[%emt 0:00:11]} 30. Rxb7 {[%emt 0:01:07]} Ne5 {[%emt 0:00:39]} 31. Bxa6 {[%emt 0:01:09]} Rc6 {[%emt 0:00:01]} 32. Bb5 {[%emt 0:00:42]} Re6 {[%emt 0:00:20]} 33. a4 {[%emt 0:00:33]} 1-0

[Event "46th GRE-chT Premier 2018"]
[Site "Rio Achaia"]
[Date "2018.07.12"]
[Round "4"]
[White "Sandalakis, Nikolaos"]
[Black "Hristodoulou, Panagiotis"]
[Result "1-0"]
[ECO "B03"]
[WhiteElo "2209"]
[BlackElo "2329"]
[Annotator "NA"]
[PlyCount "109"]
[EventDate "2018.07.10"]
[EventType "team-tourn"]
[EventCountry "GRE"]
[SourceTitle "playchess.com"]
[Source "ChessBase"]
[SourceQuality "1"]
[TimeControl "40/5400+30:1800+30"]

1. e4 {[%emt 0:00:00]} Nf6 {[%emt 0:04:10]} 2. e5 {[%emt 0:00:00]} Nd5 {[%emt 0:00:06]} 3. d4 {[%emt 0:00:00]} d6 {[%emt 0:00:07]} 4. c4 {[%emt 0:00:00]} Nb6 {[%emt 0:00:07]} 5. exd6 {[%emt 0:00:06]} cxd6 {[%emt 0:01:21]} 6. Nc3 {[%emt 0:01:43]} g6 {[%emt 0:00:08]} 7. Be3 {[%emt 0:01:00]} Bg7 {[%emt 0:00:09]} 8. Rc1 {[%emt 0:00:34]} O-O {[%emt 0:00:09]} 9. b3 {[%emt 0:01:07]} e5 {[%emt 0:00:09]} 10. dxe5 {[%emt 0:00:47]} dxe5 {[%emt 0:00:09]} 11. Qxd8 {[%emt 0:04:06]} Rxd8 {[%emt 0:00:03]} 12. c5 {[%emt 0:02:02]} N6d7 {[%emt 0:00:07]} 13. Bc4 {[%emt 0:11:47]} Nc6 {[%emt 0:00:11]} 14. Nf3 {[%emt 0:17:08]} Na5 {[%emt 0:00:19]} 15. Be2 {[%emt 0:10:00]} b6 {[%emt 0:00:10]} 16. O-O {[%emt 0:06:18]} bxc5 {[%emt 0:00:12]} 17. Rfd1 {[%emt 0:03:26]} Nc6 {[%emt 0:15:24]} 18. Ng5 {[%emt 0:15:36]} Nd4 {[%emt 0:07:12]} 19. Bc4 {[%emt 0:01:01]} Rf8 {[%emt 0:00:18]} 20. Nd5 {[%emt 0:06:57]} Bf6 {[%emt 0:45:14]} 21. Ne4 {[%emt 0:06:18]} Kg7 {[%emt 0:02:53]} 22. Ndxf6 {[%emt 0:01:54]} Nxf6 {[%emt 0:00:27]} 23. Nxc5 {[%emt 0:00:59]} Nf5 {[%emt 0:02:20]} 24. Bg5 {[%emt 0:02:33]} Nd4 {[%emt 0:03:12]} 25. f4 {[%emt 0:01:52]} Re8 {[%emt 0:07:05]} 26. Bxf6+ {[%emt 0:02:36]} Kxf6 {[%emt 0:00:02]} 27. fxe5+ {[%emt 0:00:44]} Rxe5 {[%emt 0:00:03]} 28. Rxd4 {[%emt 0:00:09]} Rxc5 {[%emt 0:00:03]} 29. Rf1+ {[%emt 0:02:58]} Rf5 {[%emt 0:01:12]} 30. Rd8 {[%emt 0:00:42]} Rxf1+ {[%emt 0:01:00]} 31. Kxf1 {[%emt 0:00:22]} Ke7 {[%emt 0:00:21]} 32. Rh8 {[%emt 0:00:32]} h5 {[%emt 0:00:03]} 33. Kf2 {[%emt 0:00:21]} Bb7 {[%emt 0:00:12]} 34. Rxa8 {[%emt 0:00:24]} Bxa8 {[%emt 0:00:02]} 35. h4 {[%emt 0:00:25]} f6 {[%emt 0:05:24]} 36. g3 {[%emt 0:00:17]} Bc6 {[%emt 0:01:58]} 37. Ke3 {[%emt 0:01:10]} g5 {[%emt 0:01:31]} 38. Be2 {[%emt 0:00:20]} Be8 {[%emt 0:00:11]} 39. b4 {[%emt 0:00:29]} Kd6 {[%emt 0:01:04]} 40. Kd4 {[%emt 0:00:00]} gxh4 {[%emt 0:00:00]} 41. gxh4 {[%emt 0:00:36]} Bf7 {[%emt 0:05:20]} 42. a3 {[%emt 0:01:09]} Be8 {[%emt 0:01:04]} 43. Bf3 {[%emt 0:11:35]} Bf7 {[%emt 0:17:14]} 44. Bd1 {[%emt 0:12:14]} Bg6 {[%emt 0:01:24]} 45. Be2 {[%emt 0:00:13]} Bf7 {[%emt 0:00:19]} 46. b5 {[%emt 0:01:09]} Bg6 {[%emt 0:00:09]} 47. Bf3 {[%emt 0:00:24]} Bf7 {[%emt 0:00:10]} 48. a4 {[%emt 0:00:20]} Be8 {[%emt 0:00:17]} 49. Kc4 {[%emt 0:02:13]} Bf7+ {[%emt 0:10:12]} 50. Kb4 {[%emt 0:00:05]} f5 {[%emt 0:00:03]} 51. a5 {[%emt 0:05:15]} Bd5 {[%emt 0:02:16]} 52. Bxd5 {[%emt 0:00:28]} Kxd5 {[%emt 0:00:01]} 53. a6 {[%emt 0:00:07]} f4 {[%emt 0:01:49]} 54. b6 {[%emt 0:00:05]} f3 {[%emt 0:00:03]} 55. bxa7 {[%emt 0:00:08]} 1-0

[Event "46th GRE-chT Premier 2018"]
[Site "Rio Achaia"]
[Date "2018.07.12"]
[Round "4"]
[White "Tzouganakis, Panteleimon"]
[Black "Papadopoulos, Nikolaos"]
[Result "0-1"]
[ECO "B06"]
[WhiteElo "2206"]
[BlackElo "2228"]
[Annotator "NA"]
[PlyCount "72"]
[EventDate "2018.07.10"]
[EventType "team-tourn"]
[EventCountry "GRE"]
[SourceTitle "playchess.com"]
[Source "ChessBase"]
[SourceQuality "1"]
[TimeControl "40/5400+30:1800+30"]

1. e4 {[%emt 0:00:00]} g6 {[%emt 0:01:06]} 2. d4 {[%emt 0:00:00]} c6 {[%emt 0:00:14]} 3. Nc3 {[%emt 0:00:26]} Bg7 {[%emt 0:00:45]} 4. Be3 {[%emt 0:01:39]} d6 {[%emt 0:01:51]} 5. Qd2 {[%emt 0:00:23]} b5 {[%emt 0:01:53]} 6. Bd3 {[%emt 0:05:59]} Nf6 {[%emt 0:02:49]} 7. f3 {[%emt 0:00:29]} Qa5 {[%emt 0:12:25]} 8. e5 {[%emt 0:04:54]} dxe5 {[%emt 0:05:47]} 9. dxe5 {[%emt 0:00:30]} b4 {[%emt 0:04:36]} 10. exf6 {[%emt 0:01:58]} bxc3 {[%emt 0:00:40]} 11. bxc3 {[%emt 0:00:23]} Bxf6 {[%emt 0:00:48]} 12. Ne2 {[%emt 0:00:03]} O-O {[%emt 0:00:58]} 13. O-O {[%emt 0:02:06]} Nd7 {[%emt 0:02:05]} 14. f4 {[%emt 0:00:26]} Nc5 {[%emt 0:16:45]} 15. Bd4 {[%emt 0:04:34]} Rd8 {[%emt 0:04:08]} 16. Rad1 {[%emt 0:28:01]} Bg4 {[%emt 0:09:11]} 17. h3 {[%emt 0:12:52]} Nxd3 {[%emt 0:07:07]} 18. Qxd3 {[%emt 0:04:14]} Bf5 {[%emt 0:05:45]} 19. Qe3 {[%emt 0:00:11]} Bxc2 {[%emt 0:03:53]} 20. Rd2 {[%emt 0:00:05]} Ba4 {[%emt 0:00:32]} 21. f5 {[%emt 0:01:57]} Qd5 {[%emt 0:08:56]} 22. Qh6 {[%emt 0:08:36]} Qc4 {[%emt 0:03:43]} 23. Rf4 {[%emt 0:03:15]} Rxd4 {[%emt 0:00:15]} 24. cxd4 {[%emt 0:05:43]} Qb4 {[%emt 0:00:59]} 25. fxg6 {[%emt 0:01:37]} hxg6 {[%emt 0:00:58]} 26. Rg4 {[%emt 0:01:39]} Rd8 {[%emt 0:00:57]} 27. h4 {[%emt 0:03:45]} Rd5 {[%emt 0:00:36]} 28. Nf4 {[%emt 0:07:11]} Qxd2 {[%emt 0:00:32]} 29. Rxg6+ {[%emt 0:00:09]} fxg6 {[%emt 0:00:02]} 30. Qxg6+ {[%emt 0:00:06]} Bg7 {[%emt 0:01:06]} 31. Qe6+ {[%emt 0:01:24]} Kh8 {[%emt 0:00:36]} 32. Nxd5 {[%emt 0:00:46]} cxd5 {[%emt 0:02:19]} 33. Qc8+ {[%emt 0:00:03]} Kh7 {[%emt 0:00:15]} 34. Qf5+ {[%emt 0:00:03]} Kh6 {[%emt 0:01:02]} 35. Qe6+ {[%emt 0:00:12]} Bf6 {[%emt 0:00:38]} 36. g4 {[%emt 0:00:04]} Qxd4+ {[%emt 0:00:27]} 0-1

[Event "46th GRE-chT Premier 2018"]
[Site "Rio Achaia"]
[Date "2018.07.12"]
[Round "4"]
[White "Koyias, Konstantinos"]
[Black "Kanellopoulos, Panayotis"]
[Result "0-1"]
[ECO "A15"]
[WhiteElo "2192"]
[BlackElo "2239"]
[Annotator "NA"]
[PlyCount "84"]
[EventDate "2018.07.10"]
[EventType "team-tourn"]
[EventCountry "GRE"]
[SourceTitle "playchess.com"]
[Source "ChessBase"]
[SourceQuality "1"]
[TimeControl "40/5400+30:1800+30"]

1. c4 {[%emt 0:00:00]} Nf6 {[%emt 0:00:13]} 2. g3 {[%emt 0:00:00]} g6 {[%emt 0:00:08]} 3. Bg2 {[%emt 0:00:00]} Bg7 {[%emt 0:00:11]} 4. Nc3 {[%emt 0:00:00]} O-O {[%emt 0:00:24]} 5. d4 {[%emt 0:00:34]} d6 {[%emt 0:00:16]} 6. h3 {[%emt 0:00:14]} Nbd7 {[%emt 0:03:10]} 7. e3 {[%emt 0:02:56]} e5 {[%emt 0:02:01]} 8. Nge2 {[%emt 0:01:32]} Re8 {[%emt 0:07:54]} 9. O-O {[%emt 0:02:32]} h5 {[%emt 0:03:04]} 10. b3 {[%emt 0:02:35]} Qe7 {[%emt 0:05:06]} 11. e4 {[%emt 0:08:30]} Qd8 {[%emt 0:20:41]} 12. d5 {[%emt 0:00:34]} a5 {[%emt 0:02:34]} 13. a3 {[%emt 0:01:05]} Nh7 {[%emt 0:06:44]} 14. Rb1 {[%emt 0:26:36]} h4 {[%emt 0:03:21]} 15. g4 {[%emt 0:03:14]} Rf8 {[%emt 0:03:46]} 16. Be3 {[%emt 0:01:35]} f5 {[%emt 0:00:53]} 17. f3 {[%emt 0:00:38]} Bf6 {[%emt 0:01:16]} 18. Qd2 {[%emt 0:05:17]} b6 {[%emt 0:12:42]} 19. b4 {[%emt 0:02:18]} axb4 {[%emt 0:00:48]} 20. axb4 {[%emt 0:00:02]} fxg4 {[%emt 0:00:16]} 21. fxg4 {[%emt 0:00:22]} Bg5 {[%emt 0:00:05]} 22. Rxf8+ {[%emt 0:02:01]} Kxf8 {[%emt 0:01:31]} 23. Nb5 {[%emt 0:00:56]} Bxe3+ {[%emt 0:04:08]} 24. Qxe3 {[%emt 0:00:03]} Kg7 {[%emt 0:00:20]} 25. Kh1 {[%emt 0:02:10]} Ba6 {[%emt 0:02:01]} 26. Nec3 {[%emt 0:01:29]} g5 {[%emt 0:06:34]} 27. Qf2 {[%emt 0:01:12]} Ndf8 {[%emt 0:02:34]} 28. Nd1 {[%emt 0:01:53]} Ng6 {[%emt 0:01:29]} 29. Ne3 {[%emt 0:00:14]} Nf4 {[%emt 0:00:37]} 30. Nf5+ {[%emt 0:01:31]} Kg6 {[%emt 0:01:17]} 31. Bf1 {[%emt 0:01:50]} Bxb5 {[%emt 0:01:30]} 32. cxb5 {[%emt 0:00:14]} Nf6 {[%emt 0:00:11]} 33. Qc2 {[%emt 0:00:22]} Ra3 {[%emt 0:00:38]} 34. Kh2 {[%emt 0:05:36]} Ra7 {[%emt 0:04:13]} 35. Rc1 {[%emt 0:00:40]} Qa8 {[%emt 0:00:42]} 36. Kh1 {[%emt 0:01:36]} Ne8 {[%emt 0:02:29]} 37. Qc4 {[%emt 0:04:21]} Ra1 {[%emt 0:00:26]} 38. Rxa1 {[%emt 0:03:13]} Qxa1 {[%emt 0:00:05]} 39. Kh2 {[%emt 0:00:14]} Qe1 {[%emt 0:01:01]} 40. Ne7+ {[%emt 0:00:00]} Kf7 {[%emt 0:00:00]} 41. Nf5 {[%emt 0:05:12]} Kf8 {[%emt 0:06:54]} 42. Bg2 {[%emt 0:08:41]} Ne2 {[%emt 0:00:23]} 0-1

[Event "46th GRE-chT Premier 2018"]
[Site "Rio Achaia"]
[Date "2018.07.12"]
[Round "4"]
[White "Liodakis, Konstantinos-Spyros"]
[Black "Tsomis, Dimitrios"]
[Result "1-0"]
[ECO "B94"]
[WhiteElo "2183"]
[BlackElo "1938"]
[Annotator "NA"]
[PlyCount "61"]
[EventDate "2018.07.10"]
[EventType "team-tourn"]
[EventCountry "GRE"]
[SourceTitle "playchess.com"]
[Source "ChessBase"]
[SourceQuality "1"]
[TimeControl "40/5400+30:1800+30"]

1. e4 {[%emt 0:00:00]} c5 {[%emt 0:00:00]} 2. Nf3 {[%emt 0:00:00]} d6 {[%emt 0:00:13]} 3. d4 {[%emt 0:00:00]} cxd4 {[%emt 0:00:17]} 4. Nxd4 {[%emt 0:00:00]} Nf6 {[%emt 0:00:14]} 5. Nc3 {[%emt 0:00:00]} a6 {[%emt 0:00:19]} 6. Bg5 {[%emt 0:00:01]} Nbd7 {[%emt 0:02:19]} 7. Bc4 {[%emt 0:07:56]} Qc7 {[%emt 0:01:47]} 8. Qe2 {[%emt 0:02:52]} h6 {[%emt 0:07:21]} 9. Bh4 {[%emt 0:01:53]} g5 {[%emt 0:13:05]} 10. Bg3 {[%emt 0:00:12]} Ne5 {[%emt 0:00:23]} 11. Bb3 {[%emt 0:03:27]} e6 {[%emt 0:03:13]} 12. O-O-O {[%emt 0:03:09]} Bd7 {[%emt 0:03:34]} 13. h4 {[%emt 0:02:09]} Rg8 {[%emt 0:03:50]} 14. hxg5 {[%emt 0:02:54]} hxg5 {[%emt 0:00:15]} 15. Nf3 {[%emt 0:02:56]} Nfg4 {[%emt 0:04:07]} 16. Nxe5 {[%emt 0:03:21]} Nxe5 {[%emt 0:00:13]} 17. Rh7 {[%emt 0:03:39]} Be7 {[%emt 0:02:58]} 18. Bxe5 {[%emt 0:16:01]} dxe5 {[%emt 0:00:15]} 19. Rxd7 {[%emt 0:02:52]} Qxd7 {[%emt 0:15:01]} 20. Ba4 {[%emt 0:00:16]} b5 {[%emt 0:00:32]} 21. Nxb5 {[%emt 0:00:05]} O-O-O {[%emt 0:00:26]} 22. Nc3 {[%emt 0:03:55]} Qd6 {[%emt 0:02:46]} 23. Rxf7 {[%emt 0:02:54]} Rh8 {[%emt 0:00:49]} 24. Nd1 {[%emt 0:00:06]} Rh1 {[%emt 0:01:20]} 25. c3 {[%emt 0:00:04]} g4 {[%emt 0:09:41]} 26. Rg7 {[%emt 0:03:29]} Bf8 {[%emt 0:00:44]} 27. Qc4+ {[%emt 0:00:15]} Kb8 {[%emt 0:02:54]} 28. Qb3+ {[%emt 0:00:09]} Qb4 {[%emt 0:00:41]} 29. cxb4 {[%emt 0:00:12]} Bxg7 {[%emt 0:00:17]} 30. Qxe6 {[%emt 0:00:46]} Bh6+ {[%emt 0:00:48]} 31. Kb1 {[%emt 0:01:18]} 1-0